[Event "Nordic Chess-ch 2019"]
[Site "Sarpsborg"]
[Date "2019.06.22"]
[Round "3.6"]
[White "Rydstrom, Tom"]
[Black "Altarbosh, Ward"]
[Result "1-0"]
[ECO "C11"]
[WhiteElo "2370"]
[BlackElo "2250"]
[Annotator "ChessBase"]
[PlyCount "67"]
[EventDate "2019.06.21"]
[EventType "swiss"]
[EventCountry "NOR"]
[SourceTitle "playchess.com"]
[Source "ChessBase"]
[SourceQuality "1"]
[TimeControl "40/5400+30:1800+30"]

1. e4 {[%emt 0:00:08]} e6 {[%emt 0:00:00]} 2. d4 {[%emt 0:00:15]} d5 {[%emt 0:00:00]} 3. Nc3 {[%emt 0:00:03]} Nf6 {[%emt 0:00:00]} 4. e5 {[%emt 0:00:10]} Nfd7 {[%emt 0:00:03]} 5. f4 {[%emt 0:00:05]} c5 {[%emt 0:00:05]} 6. Nf3 {[%emt 0:00:04]} Nc6 {[%emt 0:00:05]} 7. Be3 {[%emt 0:00:15]} cxd4 {[%emt 0:00:05]} 8. Nxd4 {[%emt 0:00:05]} Bc5 {[%emt 0:00:04]} 9. Qd2 {[%emt 0:00:03]} Nxd4 {[%emt 0:00:06]} 10. Bxd4 {[%emt 0:00:04]} a6 {[%emt 0:00:03]} 11. O-O-O {[%emt 0:00:53]} b5 {[%emt 0:00:04]} 12. Ne4 {[%emt 0:07:16]} Bxd4 {[%emt 0:01:05]} 13. Nd6+ {[%emt 0:00:15]} Ke7 {[%emt 0:00:05]} 14. Qxd4 {[%emt 0:00:20]} Qb6 {[%emt 0:00:16]} 15. Qd2 {[%emt 0:01:26]} b4 {[%emt 0:00:44]} 16. Qe1 {[%emt 0:16:20]} g5 {[%emt 0:03:00]} 17. fxg5 {[%emt 0:09:50]} a5 {[%emt 0:04:00]} 18. Bb5 {[%emt 0:08:37]} Ba6 {[%emt 0:02:03]} 19. Bxd7 {[%emt 0:00:23]} Kxd7 {[%emt 0:00:02]} 20. h4 {[%emt 0:01:06]} a4 {[%emt 0:01:55]} 21. Rh3 {[%emt 0:01:07]} a3 {[%emt 0:05:14]} 22. b3 {[%emt 0:00:13]} Qc5 {[%emt 0:00:32]} 23. Rf3 {[%emt 0:00:47]} Rhf8 {[%emt 0:00:36]} 24. Qf2 {[%emt 0:01:15]} Qxf2 {[%emt 0:00:56]} 25. Rxf2 {[%emt 0:00:05]} Ke7 {[%emt 0:00:05]} 26. Rd4 {[%emt 0:00:25]} h6 {[%emt 0:00:52]} 27. Rdf4 {[%emt 0:00:26]} f5 {[%emt 0:00:36]} 28. gxf6+ {[%emt 0:00:19]} Kd7 {[%emt 0:00:11]} 29. Rxb4 {[%emt 0:00:25]} Kc6 {[%emt 0:00:06]} 30. Ra4 {[%emt 0:00:34]} Kc5 {[%emt 0:00:20]} 31. Rff4 {[%emt 0:01:13]} h5 {[%emt 0:00:52]} 32. Rxa3 {[%emt 0:00:40]} d4 {[%emt 0:00:05]} 33. Ra5+ {[%emt 0:00:13]} Kb6 {[%emt 0:01:36]} 34. Ra4 {[%emt 0:00:07]} 1-0

[Event "Nordic Chess-ch 2019"]
[Site "Sarpsborg"]
[Date "2019.06.22"]
[Round "3.7"]
[White "Gretarsson, Helgi Ass"]
[Black "Kvaloy, Aksel Bu"]
[Result "1-0"]
[ECO "A58"]
[WhiteElo "2433"]
[BlackElo "2138"]
[Annotator "ChessBase"]
[PlyCount "57"]
[EventDate "2019.06.21"]
[EventType "swiss"]
[EventCountry "NOR"]
[SourceTitle "playchess.com"]
[Source "ChessBase"]
[SourceQuality "1"]
[TimeControl "40/5400+30:1800+30"]

1. d4 {[%emt 0:00:00]} Nf6 {[%emt 0:00:00]} 2. c4 {[%emt 0:00:00]} c5 {[%emt 0:00:00]} 3. d5 {[%emt 0:00:08]} b5 {[%emt 0:00:00]} 4. cxb5 {[%emt 0:00:04]} a6 {[%emt 0:00:28]} 5. bxa6 {[%emt 0:00:10]} g6 {[%emt 0:00:42]} 6. Nc3 {[%emt 0:00:34]} Bg7 {[%emt 0:00:16]} 7. e4 {[%emt 0:00:07]} O-O {[%emt 0:00:33]} 8. Nf3 {[%emt 0:00:15]} Qa5 {[%emt 0:06:08]} 9. Nd2 {[%emt 0:43:43]} Bxa6 {[%emt 0:08:08]} 10. Bxa6 {[%emt 0:00:08]} Qxa6 {[%emt 0:02:50]} 11. Qe2 {[%emt 0:00:05]} d6 {[%emt 0:02:37]} 12. Nb5 {[%emt 0:06:47]} Nbd7 {[%emt 0:07:39]} 13. a4 {[%emt 0:00:04]} Nb6 {[%emt 0:15:59]} 14. Ra3 {[%emt 0:00:12]} Rfc8 {[%emt 0:01:13]} 15. b3 {[%emt 0:00:10]} c4 {[%emt 0:15:34]} 16. Nxc4 {[%emt 0:08:03]} Nxc4 {[%emt 0:01:29]} 17. bxc4 {[%emt 0:00:01]} Nd7 {[%emt 0:01:22]} 18. O-O {[%emt 0:00:31]} Nb6 {[%emt 0:01:15]} 19. Bg5 {[%emt 0:04:19]} Rxc4 {[%emt 0:05:24]} 20. Bxe7 {[%emt 0:03:33]} Re8 {[%emt 0:01:13]} 21. Nxd6 {[%emt 0:06:50]} Rxe7 {[%emt 0:00:59]} 22. a5 {[%emt 0:00:04]} Nxd5 {[%emt 0:09:58]} 23. Qxc4 {[%emt 0:04:03]} Qxd6 {[%emt 0:00:16]} 24. Rd3 {[%emt 0:00:04]} Be5 {[%emt 0:00:52]} 25. Qxd5 {[%emt 0:00:20]} Bxh2+ {[%emt 0:01:02]} 26. Kh1 {[%emt 0:00:01]} Qf4 {[%emt 0:00:43]} 27. Qd8+ {[%emt 0:00:13]} Kg7 {[%emt 0:00:03]} 28. Qxe7 {[%emt 0:00:06]} Qh6 {[%emt 0:00:13]} 29. Rh3 {[%emt 0:00:04]} 1-0

[Event "Nordic Chess-ch 2019"]
[Site "Sarpsborg"]
[Date "2019.06.22"]
[Round "3.8"]
[White "Kristiansen, Rune Harald"]
[Black "Ogaard, Leif"]
[Result "1/2-1/2"]
[ECO "A47"]
[WhiteElo "1849"]
[BlackElo "2385"]
[Annotator "ChessBase"]
[PlyCount "168"]
[EventDate "2019.06.21"]
[EventType "swiss"]
[EventCountry "NOR"]
[SourceTitle "playchess.com"]
[Source "ChessBase"]
[SourceQuality "1"]
[TimeControl "40/5400+30:1800+30"]

1. d4 {[%emt 0:00:16]} Nf6 {[%emt 0:00:00]} 2. Nf3 {[%emt 0:01:52]} e6 {[%emt 0:01:30]} 3. e3 {[%emt 0:06:08]} b6 {[%emt 0:00:46]} 4. Bd3 {[%emt 0:01:57]} Bb7 {[%emt 0:00:12]} 5. Nbd2 {[%emt 0:01:06]} c5 {[%emt 0:00:54]} 6. c3 {[%emt 0:00:21]} Nc6 {[%emt 0:01:20]} 7. Qe2 {[%emt 0:05:17]} Qc7 {[%emt 0:00:53]} 8. Ba6 {[%emt 0:08:47]} Bxa6 {[%emt 0:07:00]} 9. Qxa6 {[%emt 0:00:12]} d5 {[%emt 0:00:45]} 10. Qa4 {[%emt 0:08:09]} a6 {[%emt 0:03:44]} 11. dxc5 {[%emt 0:06:20]} Bxc5 {[%emt 0:01:18]} 12. Nd4 {[%emt 0:06:24]} Bxd4 {[%emt 0:00:37]} 13. exd4 {[%emt 0:00:12]} O-O {[%emt 0:00:32]} 14. O-O {[%emt 0:03:03]} b5 {[%emt 0:00:24]} 15. Qd1 {[%emt 0:02:20]} b4 {[%emt 0:01:01]} 16. Qf3 {[%emt 0:04:29]} Rfc8 {[%emt 0:01:26]} 17. Nb3 {[%emt 0:02:46]} bxc3 {[%emt 0:07:23]} 18. bxc3 {[%emt 0:00:33]} Ne4 {[%emt 0:02:49]} 19. Bf4 {[%emt 0:08:06]} Qd8 {[%emt 0:07:21]} 20. Nd2 {[%emt 0:10:03]} Nxd2 {[%emt 0:02:27]} 21. Bxd2 {[%emt 0:00:07]} Na5 {[%emt 0:00:14]} 22. Rfc1 {[%emt 0:05:29]} Nc4 {[%emt 0:02:23]} 23. Bf4 {[%emt 0:00:58]} Ra7 {[%emt 0:03:06]} 24. Qg3 {[%emt 0:00:59]} Qf6 {[%emt 0:00:57]} 25. Rab1 {[%emt 0:02:25]} Qf5 {[%emt 0:01:55]} 26. Bh6 {[%emt 0:02:56]} Qg6 {[%emt 0:03:40]} 27. Qxg6 {[%emt 0:02:38]} hxg6 {[%emt 0:00:12]} 28. Bf4 {[%emt 0:00:09]} f6 {[%emt 0:02:52]} 29. Kf1 {[%emt 0:02:35]} g5 {[%emt 0:00:23]} 30. Be3 {[%emt 0:00:19]} Rac7 {[%emt 0:01:41]} 31. Rb3 {[%emt 0:01:09]} Rc6 {[%emt 0:11:23]} 32. Ke2 {[%emt 0:01:48]} Kf7 {[%emt 0:00:14]} 33. h3 {[%emt 0:00:51]} Kg6 {[%emt 0:00:16]} 34. Bd2 {[%emt 0:04:02]} e5 {[%emt 0:11:01]} 35. dxe5 {[%emt 0:00:57]} fxe5 {[%emt 0:01:21]} 36. Be1 {[%emt 0:00:25]} Nd6 {[%emt 0:02:30]} 37. Rd1 {[%emt 0:00:47]} d4 {[%emt 0:12:05]} 38. cxd4 {[%emt 0:00:15]} Rc2+ {[%emt 0:00:55]} 39. Kf1 {[%emt 0:00:11]} exd4 {[%emt 0:04:42]} 40. Rb6 {[%emt 0:01:14]} R8c6 {[%emt 0:00:10]} 41. Rxc6 {[%emt 0:30:03]} Rxc6 {[%emt 0:30:09]} 42. Rxd4 {[%emt 0:00:11]} Nb5 {[%emt 0:00:00]} 43. Rg4 {[%emt 0:00:00]} Kh5 {[%emt 0:00:00]} 44. Bd2 {[%emt 0:00:00]} Rc5 {[%emt 0:00:00]} 45. g3 {[%emt 0:00:00]} Nc7 {[%emt 0:00:00]} 46. Be3 {[%emt 0:00:00]} Rb5 {[%emt 0:00:00]} 47. a4 {[%emt 0:00:00]} Rd5 {[%emt 0:00:00]} 48. Rc4 {[%emt 0:00:00]} Ne8 {[%emt 0:00:00]} 49. Rc6 {[%emt 0:00:00]} g4 {[%emt 0:00:00]} 50. Kg2 {[%emt 0:00:00]} a5 {[%emt 0:00:00]} 51. Rc5 {[%emt 0:01:47]} Nf6 {[%emt 0:00:23]} 52. Rb5 {[%emt 0:02:17]} gxh3+ {[%emt 0:07:50]} 53. Kxh3 {[%emt 0:00:12]} Kg6 {[%emt 0:00:06]} 54. Bb6 {[%emt 0:00:59]} Rd2 {[%emt 0:03:05]} 55. Rxa5 {[%emt 0:00:26]} Ne4 {[%emt 0:00:12]} 56. Kg2 {[%emt 0:00:46]} Ra2 {[%emt 0:00:09]} 57. Bd4 {[%emt 0:01:00]} Rd2 {[%emt 0:00:11]} 58. Be3 {[%emt 0:00:26]} Ra2 {[%emt 0:00:05]} 59. Ra7 {[%emt 0:00:38]} Nf6 {[%emt 0:02:20]} 60. a5 {[%emt 0:00:29]} Ra4 {[%emt 0:00:22]} 61. Bb6 {[%emt 0:01:10]} Nd5 {[%emt 0:00:06]} 62. Rd7 {[%emt 0:00:37]} Nf6 {[%emt 0:00:32]} 63. Rd6 {[%emt 0:00:00]} Kf5 {[%emt 0:00:16]} 64. Rd4 {[%emt 0:00:59]} Ra2 {[%emt 0:00:12]} 65. Rb4 {[%emt 0:00:57]} Nd5 {[%emt 0:00:50]} 66. Rb5 {[%emt 0:00:09]} Ke6 {[%emt 0:00:09]} 67. Kh3 {[%emt 0:01:00]} Ra4 {[%emt 0:00:23]} 68. Rb3 {[%emt 0:00:21]} g6 {[%emt 0:00:33]} 69. f4 {[%emt 0:00:26]} Kf5 {[%emt 0:01:42]} 70. Rb5 {[%emt 0:00:32]} Ke6 {[%emt 0:00:13]} 71. Rb1 {[%emt 0:00:32]} Kf5 {[%emt 0:00:46]} 72. Re1 {[%emt 0:00:09]} Nxb6 {[%emt 0:00:31]} 73. axb6 {[%emt 0:01:03]} Rb4 {[%emt 0:00:06]} 74. Re5+ {[%emt 0:00:31]} Kf6 {[%emt 0:00:07]} 75. Kg4 {[%emt 0:00:33]} Rxb6 {[%emt 0:00:07]} 76. Ra5 {[%emt 0:00:17]} Rb7 {[%emt 0:01:07]} 77. Ra6+ {[%emt 0:00:20]} Kg7 {[%emt 0:00:07]} 78. Kh4 {[%emt 0:00:17]} Rc7 {[%emt 0:00:32]} 79. g4 {[%emt 0:00:22]} Rb7 {[%emt 0:00:30]} 80. Kg5 {[%emt 0:00:20]} Rb5+ {[%emt 0:00:06]} 81. f5 {[%emt 0:00:32]} gxf5 {[%emt 0:00:06]} 82. Ra7+ {[%emt 0:00:25]} Kf8 {[%emt 0:00:19]} 83. gxf5 {[%emt 0:00:15]} Rb6 {[%emt 0:00:17]} 84. f6 {[%emt 0:00:56]} Rb1 {[%emt 0:00:08]} 1/2-1/2

[Event "Nordic Chess-ch 2019"]
[Site "Sarpsborg"]
[Date "2019.06.22"]
[Round "3.9"]
[White "Lindgren, Philip"]
[Black "Tunge, Christian"]
[Result "0-1"]
[ECO "E91"]
[WhiteElo "2384"]
[BlackElo "2027"]
[Annotator "ChessBase"]
[PlyCount "60"]
[EventDate "2019.06.21"]
[EventType "swiss"]
[EventCountry "NOR"]
[SourceTitle "playchess.com"]
[Source "ChessBase"]
[SourceQuality "1"]
[TimeControl "40/5400+30:1800+30"]

1. d4 {[%emt 0:00:00]} Nf6 {[%emt 0:00:16]} 2. c4 {[%emt 0:00:00]} c5 {[%emt 0:00:19]} 3. d5 {[%emt 0:00:24]} g6 {[%emt 0:00:35]} 4. Nc3 {[%emt 0:01:58]} Bg7 {[%emt 0:01:19]} 5. Nf3 {[%emt 0:04:10]} d6 {[%emt 0:02:27]} 6. e4 {[%emt 0:03:47]} O-O {[%emt 0:02:13]} 7. Be2 {[%emt 0:04:52]} e6 {[%emt 0:10:25]} 8. O-O {[%emt 0:02:56]} Na6 {[%emt 0:01:14]} 9. h3 {[%emt 0:05:17]} Re8 {[%emt 0:07:06]} 10. Bd3 {[%emt 0:08:05]} Nc7 {[%emt 0:02:15]} 11. a4 {[%emt 0:01:31]} Na6 {[%emt 0:05:56]} 12. Bg5 {[%emt 0:04:13]} h6 {[%emt 0:01:03]} 13. Bf4 {[%emt 0:09:29]} e5 {[%emt 0:08:22]} 14. Bd2 {[%emt 0:03:09]} Nh7 {[%emt 0:05:04]} 15. Qc1 {[%emt 0:02:21]} f5 {[%emt 0:01:44]} 16. Bxh6 {[%emt 0:05:15]} f4 {[%emt 0:00:22]} 17. Bxg7 {[%emt 0:00:11]} Kxg7 {[%emt 0:00:05]} 18. Rd1 {[%emt 0:08:00]} Ng5 {[%emt 0:04:47]} 19. Nxg5 {[%emt 0:05:09]} Qxg5 {[%emt 0:00:08]} 20. Kf1 {[%emt 0:01:00]} Rh8 {[%emt 0:01:20]} 21. Be2 {[%emt 0:09:38]} Bxh3 {[%emt 0:16:49]} 22. gxh3 {[%emt 0:08:17]} Rxh3 {[%emt 0:00:11]} 23. Ke1 {[%emt 0:00:09]} Nb4 {[%emt 0:00:14]} 24. Bf1 {[%emt 0:02:47]} Rah8 {[%emt 0:14:29]} 25. Bxh3 {[%emt 0:01:47]} Rxh3 {[%emt 0:00:01]} 26. Ne2 {[%emt 0:02:26]} Qg2 {[%emt 0:05:10]} 27. Ra3 {[%emt 0:03:49]} Rh2 {[%emt 0:01:02]} 28. Kd2 {[%emt 0:02:40]} Qxf2 {[%emt 0:00:33]} 29. Qc3 {[%emt 0:00:36]} Qxe2+ {[%emt 0:00:52]} 30. Kc1 {[%emt 0:00:01]} Nd3+ {[%emt 0:00:52]} 0-1

[Event "Nordic Chess-ch 2019"]
[Site "Sarpsborg"]
[Date "2019.06.22"]
[Round "3.10"]
[White "Sjoberg, Isak"]
[Black "Dragicevic, Drazen"]
[Result "1/2-1/2"]
[ECO "B31"]
[WhiteElo "2222"]
[BlackElo "2359"]
[Annotator "ChessBase"]
[PlyCount "75"]
[EventDate "2019.06.21"]
[EventType "swiss"]
[EventCountry "NOR"]
[SourceTitle "playchess.com"]
[Source "ChessBase"]
[SourceQuality "1"]
[TimeControl "40/5400+30:1800+30"]

1. e4 {[%emt 0:05:04]} c5 {[%emt 0:00:00]} 2. Nf3 {[%emt 0:00:23]} Nc6 {[%emt 0:00:10]} 3. Bb5 {[%emt 0:01:08]} g6 {[%emt 0:00:30]} 4. O-O {[%emt 0:00:05]} Bg7 {[%emt 0:00:09]} 5. d3 {[%emt 0:01:26]} Qb6 {[%emt 0:03:22]} 6. Nc3 {[%emt 0:00:05]} Bxc3 {[%emt 0:00:24]} 7. Bxc6 {[%emt 0:00:27]} Bg7 {[%emt 0:00:25]} 8. Ba4 {[%emt 0:00:06]} Nf6 {[%emt 0:00:16]} 9. Bb3 {[%emt 0:00:16]} O-O {[%emt 0:02:51]} 10. e5 {[%emt 0:03:34]} Ng4 {[%emt 0:09:38]} 11. Bf4 {[%emt 0:04:35]} d6 {[%emt 0:16:01]} 12. exd6 {[%emt 0:02:30]} exd6 {[%emt 0:03:07]} 13. Qd2 {[%emt 0:09:57]} Qc6 {[%emt 0:02:44]} 14. Rae1 {[%emt 0:11:19]} b5 {[%emt 0:23:53]} 15. c4 {[%emt 0:15:20]} a6 {[%emt 0:07:04]} 16. Bc2 {[%emt 0:19:06]} Bb7 {[%emt 0:04:56]} 17. d4 {[%emt 0:01:54]} bxc4 {[%emt 0:01:12]} 18. dxc5 {[%emt 0:00:20]} dxc5 {[%emt 0:03:34]} 19. Be4 {[%emt 0:03:39]} Qb5 {[%emt 0:04:21]} 20. Bxb7 {[%emt 0:01:19]} Qxb7 {[%emt 0:00:02]} 21. h3 {[%emt 0:00:26]} Nf6 {[%emt 0:01:21]} 22. Qc2 {[%emt 0:00:25]} Qb5 {[%emt 0:03:43]} 23. Nd2 {[%emt 0:02:50]} Nd5 {[%emt 0:03:01]} 24. Be5 {[%emt 0:00:25]} Nb4 {[%emt 0:00:54]} 25. Qxc4 {[%emt 0:00:34]} Qxc4 {[%emt 0:02:18]} 26. Nxc4 {[%emt 0:00:05]} Nxa2 {[%emt 0:03:37]} 27. Bd6 {[%emt 0:01:58]} Rfd8 {[%emt 0:01:27]} 28. Nb6 {[%emt 0:00:01]} Ra7 {[%emt 0:00:09]} 29. Bxc5 {[%emt 0:00:04]} Rc7 {[%emt 0:00:52]} 30. Ba3 {[%emt 0:08:29]} Bf8 {[%emt 0:00:58]} 31. Bxf8 {[%emt 0:03:17]} Kxf8 {[%emt 0:00:01]} 32. Ra1 {[%emt 0:00:06]} Nb4 {[%emt 0:01:20]} 33. Ra4 {[%emt 0:00:01]} Nd3 {[%emt 0:00:51]} 34. Rd1 {[%emt 0:01:32]} Rc1 {[%emt 0:01:01]} 35. Rxc1 {[%emt 0:00:07]} Nxc1 {[%emt 0:00:01]} 36. Rxa6 {[%emt 0:00:27]} Rd1+ {[%emt 0:00:32]} 37. Kh2 {[%emt 0:00:01]} Rd2 {[%emt 0:00:36]} 38. Ra8+ {[%emt 0:02:28]} 1/2-1/2

[Event "Nordic Chess-ch 2019"]
[Site "Sarpsborg"]
[Date "2019.06.22"]
[Round "3.11"]
[White "Chatalbashev, Boris"]
[Black "Abdrlauf, Elham"]
[Result "1-0"]
[ECO "A35"]
[WhiteElo "2527"]
[BlackElo "2207"]
[Annotator "ChessBase"]
[PlyCount "103"]
[EventDate "2019.06.21"]
[EventType "swiss"]
[EventCountry "NOR"]
[SourceTitle "playchess.com"]
[Source "ChessBase"]
[SourceQuality "1"]
[TimeControl "40/5400+30:1800+30"]

1. c4 {[%emt 0:00:00]} c5 {[%emt 0:00:11]} 2. Nf3 {[%emt 0:00:00]} Nc6 {[%emt 0:00:31]} 3. Nc3 {[%emt 0:00:11]} g6 {[%emt 0:00:22]} 4. e3 {[%emt 0:01:09]} d6 {[%emt 0:06:37]} 5. d4 {[%emt 0:00:10]} cxd4 {[%emt 0:03:43]} 6. exd4 {[%emt 0:00:06]} Bg4 {[%emt 0:00:13]} 7. Be2 {[%emt 0:01:20]} Bg7 {[%emt 0:05:50]} 8. O-O {[%emt 0:01:25]} Nh6 {[%emt 0:06:07]} 9. d5 {[%emt 0:03:04]} Bxf3 {[%emt 0:02:40]} 10. Bxf3 {[%emt 0:00:06]} Ne5 {[%emt 0:02:19]} 11. Be4 {[%emt 0:14:13]} O-O {[%emt 0:07:38]} 12. b3 {[%emt 0:00:02]} Nhg4 {[%emt 0:09:30]} 13. Bd2 {[%emt 0:04:44]} Rc8 {[%emt 0:07:52]} 14. Rc1 {[%emt 0:00:52]} Nf6 {[%emt 0:02:51]} 15. Bb1 {[%emt 0:01:21]} b6 {[%emt 0:08:44]} 16. Re1 {[%emt 0:15:41]} Re8 {[%emt 0:06:31]} 17. f4 {[%emt 0:04:14]} Ned7 {[%emt 0:00:07]} 18. Nb5 {[%emt 0:00:11]} a6 {[%emt 0:00:45]} 19. Na7 {[%emt 0:00:24]} Rc7 {[%emt 0:01:15]} 20. Nc6 {[%emt 0:00:07]} Rxc6 {[%emt 0:00:26]} 21. dxc6 {[%emt 0:00:09]} Nb8 {[%emt 0:00:19]} 22. Qf3 {[%emt 0:10:20]} Qc7 {[%emt 0:00:05]} 23. Be3 {[%emt 0:06:46]} Nxc6 {[%emt 0:00:14]} 24. Bf2 {[%emt 0:00:07]} a5 {[%emt 0:02:22]} 25. a3 {[%emt 0:04:00]} Nd7 {[%emt 0:00:29]} 26. Be4 {[%emt 0:00:49]} Nd4 {[%emt 0:00:49]} 27. Qd1 {[%emt 0:00:12]} Ne6 {[%emt 0:00:16]} 28. f5 {[%emt 0:01:38]} Nec5 {[%emt 0:00:08]} 29. Bc2 {[%emt 0:02:01]} Bb2 {[%emt 0:03:49]} 30. fxg6 {[%emt 0:02:56]} hxg6 {[%emt 0:01:14]} 31. b4 {[%emt 0:00:31]} Bxc1 {[%emt 0:01:45]} 32. Qxc1 {[%emt 0:01:04]} Ne6 {[%emt 0:01:37]} 33. Rxe6 {[%emt 0:03:05]} fxe6 {[%emt 0:00:43]} 34. Qh6 {[%emt 0:03:48]} Nf8 {[%emt 0:01:42]} 35. Bxg6 {[%emt 0:00:26]} Rc8 {[%emt 0:00:15]} 36. Bd3 {[%emt 0:01:51]} e5 {[%emt 0:02:18]} 37. Qg5+ {[%emt 0:12:14]} Kh8 {[%emt 0:01:07]} 38. Qh5+ {[%emt 0:02:51]} Kg8 {[%emt 0:04:54]} 39. Qg4+ {[%emt 0:00:05]} Kf7 {[%emt 0:02:00]} 40. h4 {[%emt 0:00:27]} axb4 {[%emt 0:04:04]} 41. axb4 {[%emt 0:30:45]} e6 {[%emt 0:09:37]} 42. h5 {[%emt 0:00:00]} Ke8 {[%emt 0:00:09]} 43. h6 {[%emt 0:00:00]} Ra8 {[%emt 0:00:33]} 44. h7 {[%emt 0:00:00]} Ra1+ {[%emt 0:00:23]} 45. Kh2 {[%emt 0:00:00]} Nxh7 {[%emt 0:00:08]} 46. Qg8+ {[%emt 0:00:00]} Nf8 {[%emt 0:01:57]} 47. Bg6+ {[%emt 0:00:00]} Kd7 {[%emt 0:00:04]} 48. Qxf8 {[%emt 0:00:00]} Qd8 {[%emt 0:04:07]} 49. Qxd8+ {[%emt 0:00:00]} Kxd8 {[%emt 0:00:01]} 50. Bxb6+ {[%emt 0:00:00]} Kd7 {[%emt 0:00:03]} 51. c5 {[%emt 0:00:00]} Ra4 {[%emt 0:02:50]} 52. c6+ {[%emt 0:00:00]} 1-0

[Event "Nordic Chess-ch 2019"]
[Site "Sarpsborg"]
[Date "2019.06.22"]
[Round "3.12"]
[White "Dingertz, Erik"]
[Black "Holm, Kristian Stuvik"]
[Result "0-1"]
[ECO "A10"]
[WhiteElo "1969"]
[BlackElo "2474"]
[Annotator "ChessBase"]
[PlyCount "58"]
[EventDate "2019.06.21"]
[EventType "swiss"]
[EventCountry "NOR"]
[SourceTitle "playchess.com"]
[Source "ChessBase"]
[SourceQuality "1"]
[TimeControl "40/5400+30:1800+30"]

1. c4 {[%emt 0:00:18]} f5 {[%emt 0:00:53]} 2. g3 {[%emt 0:00:08]} Nf6 {[%emt 0:00:05]} 3. Bg2 {[%emt 0:00:06]} g6 {[%emt 0:00:10]} 4. Nc3 {[%emt 0:00:06]} Bg7 {[%emt 0:00:04]} 5. d3 {[%emt 0:00:26]} O-O {[%emt 0:00:30]} 6. Rb1 {[%emt 0:00:09]} e5 {[%emt 0:00:20]} 7. b4 {[%emt 0:00:09]} Nh5 {[%emt 0:01:53]} 8. Bd2 {[%emt 0:02:11]} d6 {[%emt 0:02:05]} 9. Nf3 {[%emt 0:01:36]} Nc6 {[%emt 0:04:33]} 10. b5 {[%emt 0:01:01]} Ne7 {[%emt 0:00:08]} 11. Qb3 {[%emt 0:01:12]} h6 {[%emt 0:02:05]} 12. O-O {[%emt 0:06:10]} Be6 {[%emt 0:01:22]} 13. Ne1 {[%emt 0:02:23]} Rb8 {[%emt 0:02:42]} 14. Nc2 {[%emt 0:01:35]} f4 {[%emt 0:00:15]} 15. Qa3 {[%emt 0:01:36]} Qd7 {[%emt 0:05:47]} 16. Qxa7 {[%emt 0:15:32]} Bh3 {[%emt 0:02:03]} 17. c5 {[%emt 0:01:14]} Bxg2 {[%emt 0:00:53]} 18. Kxg2 {[%emt 0:00:08]} Nf6 {[%emt 0:07:10]} 19. Qa4 {[%emt 0:07:44]} Ra8 {[%emt 0:02:21]} 20. Qb3+ {[%emt 0:02:04]} d5 {[%emt 0:00:17]} 21. Nb4 {[%emt 0:01:05]} c6 {[%emt 0:02:17]} 22. a4 {[%emt 0:00:45]} h5 {[%emt 0:01:23]} 23. b6 {[%emt 0:20:09]} Bh6 {[%emt 0:03:16]} 24. Qa2 {[%emt 0:05:55]} h4 {[%emt 0:06:43]} 25. Ne4 {[%emt 0:06:49]} Nh5 {[%emt 0:02:57]} 26. Bc3 {[%emt 0:00:32]} hxg3 {[%emt 0:04:45]} 27. fxg3 {[%emt 0:00:35]} Nf5 {[%emt 0:01:22]} 28. Rf3 {[%emt 0:03:14]} Kh7 {[%emt 0:03:15]} 29. Nd2 {[%emt 0:00:46]} Ne3+ {[%emt 0:00:56]} 0-1

[Event "Nordic Chess-ch 2019"]
[Site "Sarpsborg"]
[Date "2019.06.22"]
[Round "3.13"]
[White "Hobber, Anders"]
[Black "Hamre, Kenneth"]
[Result "1-0"]
[ECO "A46"]
[WhiteElo "2282"]
[BlackElo "2033"]
[Annotator "ChessBase"]
[PlyCount "81"]
[EventDate "2019.06.21"]
[EventType "swiss"]
[EventCountry "NOR"]
[SourceTitle "playchess.com"]
[Source "ChessBase"]
[SourceQuality "1"]
[TimeControl "40/5400+30:1800+30"]

1. d4 {[%emt 0:00:00]} Nf6 {[%emt 0:00:00]} 2. Nf3 {[%emt 0:00:00]} c5 {[%emt 0:00:00]} 3. c3 {[%emt 0:00:59]} e6 {[%emt 0:00:18]} 4. Bg5 {[%emt 0:00:30]} Nc6 {[%emt 0:00:30]} 5. e3 {[%emt 0:00:30]} Qb6 {[%emt 0:00:30]} 6. Qc2 {[%emt 0:00:30]} Be7 {[%emt 0:00:30]} 7. Nbd2 {[%emt 0:00:30]} d5 {[%emt 0:00:30]} 8. Bd3 {[%emt 0:00:30]} h6 {[%emt 0:00:30]} 9. Bh4 {[%emt 0:00:30]} Bd7 {[%emt 0:00:30]} 10. Rb1 {[%emt 0:00:30]} Rc8 {[%emt 0:00:30]} 11. Qd1 {[%emt 0:00:30]} c4 {[%emt 0:00:30]} 12. Bc2 {[%emt 0:00:30]} Qc7 {[%emt 0:00:30]} 13. Bg3 {[%emt 0:00:30]} Bd6 {[%emt 0:00:30]} 14. Bxd6 {[%emt 0:00:30]} Qxd6 {[%emt 0:00:30]} 15. e4 {[%emt 0:00:30]} dxe4 {[%emt 0:00:30]} 16. Nxc4 {[%emt 0:00:30]} Qd5 {[%emt 0:00:30]} 17. Ne3 {[%emt 0:00:30]} Qa5 {[%emt 0:00:30]} 18. Nd2 {[%emt 0:00:30]} O-O {[%emt 0:00:30]} 19. O-O {[%emt 0:00:30]} Qxa2 {[%emt 0:00:30]} 20. Ndc4 {[%emt 0:00:30]} Qa6 {[%emt 0:00:30]} 21. Nd6 {[%emt 0:00:30]} Rb8 {[%emt 0:00:30]} 22. Nxe4 {[%emt 0:00:30]} Nxe4 {[%emt 1:09:14]} 23. Bxe4 {[%emt 1:11:02]} b5 {[%emt 0:02:54]} 24. Bc2 {[%emt 0:02:54]} Ne7 {[%emt 0:00:30]} 25. Qd3 {[%emt 0:00:30]} f5 {[%emt 0:00:30]} 26. Rfe1 {[%emt 0:00:30]} Qd6 {[%emt 0:04:34]} 27. Ra1 {[%emt 0:03:07]} Rb7 {[%emt 0:02:00]} 28. Bb3 {[%emt 0:03:04]} Kh8 {[%emt 0:00:49]} 29. Nf1 {[%emt 0:02:15]} Ng6 {[%emt 0:00:31]} 30. Qg3 {[%emt 0:00:38]} Nf4 {[%emt 0:04:58]} 31. Nd2 {[%emt 0:00:12]} Rf6 {[%emt 0:00:29]} 32. Qe3 {[%emt 0:02:01]} Rg6 {[%emt 0:05:20]} 33. g3 {[%emt 0:00:07]} Bc6 {[%emt 0:04:07]} 34. Qe5 {[%emt 0:00:54]} Qxe5 {[%emt 0:00:39]} 35. Rxe5 {[%emt 0:00:53]} Bd5 {[%emt 0:00:47]} 36. Bxd5 {[%emt 0:01:14]} Nxd5 {[%emt 0:00:02]} 37. Nb3 {[%emt 0:01:56]} Re7 {[%emt 0:01:09]} 38. Ra6 {[%emt 0:00:59]} Nf4 {[%emt 0:00:33]} 39. Nc5 {[%emt 0:00:32]} Kh7 {[%emt 0:00:29]} 40. Kf1 {[%emt 0:00:19]} Nd5 {[%emt 0:00:35]} 41. Nxe6 {[%emt 0:30:40]} 1-0